[Event "*** Titled Tuesday Blitz"]
[Site "Chess.com"]
[Date "2021.02.16"]
[Round "3"]
[White "Ze-Pequeno"]
[Black "bazar-wokzal"]
[Result "1/2-1/2"]
[WhiteElo "2295"]
[BlackElo "2570"]
[TimeControl "180+1"]
[EndTime "10:33:18 PST"]
[Termination "Game drawn - insufficient material"]

1. e4 {[%clk 0:03:00.9]} 1... Nc6 {[%clk 0:02:59.3]} 2. Nf3 {[%clk 0:03:00.5]}
2... d5 {[%clk 0:02:59]} 3. exd5 {[%clk 0:03:00.4]} 3... Qxd5 {[%clk 0:02:58.7]}
4. Nc3 {[%clk 0:03:00.3]} 4... Qa5 {[%clk 0:02:59.2]} 5. Bb5 {[%clk 0:02:59.2]}
5... Bd7 {[%clk 0:02:59.2]} 6. O-O {[%clk 0:02:58.2]} 6... a6 {[%clk 0:02:59.6]}
7. Bxc6 {[%clk 0:02:57.8]} 7... Bxc6 {[%clk 0:03:00.5]} 8. Re1 {[%clk
0:02:57.5]} 8... Qh5 {[%clk 0:02:56.1]} 9. Ne5 {[%clk 0:02:51.2]} 9... Qxd1
{[%clk 0:02:54.6]} 10. Nxd1 {[%clk 0:02:51.5]} 10... Bd5 {[%clk 0:02:47.4]} 11.
Ne3 {[%clk 0:02:42.1]} 11... Be6 {[%clk 0:02:45.8]} 12. d4 {[%clk 0:02:40.3]}
12... c6 {[%clk 0:02:25.2]} 13. b3 {[%clk 0:02:30.4]} 13... f6 {[%clk
0:02:22.1]} 14. Nd3 {[%clk 0:02:28.8]} 14... O-O-O {[%clk 0:02:17.3]} 15. Bb2
{[%clk 0:02:25.9]} 15... Bf7 {[%clk 0:02:13]} 16. Nf4 {[%clk 0:02:03.6]} 16...
g5 {[%clk 0:02:10]} 17. Ne2 {[%clk 0:02:01.3]} 17... h5 {[%clk 0:02:04.2]} 18.
Rad1 {[%clk 0:01:58.1]} 18... Nh6 {[%clk 0:02:02.8]} 19. c4 {[%clk 0:01:50.2]}
19... Ng4 {[%clk 0:01:46.3]} 20. Nxg4 {[%clk 0:01:35.6]} 20... hxg4 {[%clk
0:01:45.7]} 21. Ng3 {[%clk 0:01:36]} 21... Bg6 {[%clk 0:01:41.4]} 22. Ne4 {[%clk
0:01:19.6]} 22... Rh7 {[%clk 0:01:33.6]} 23. Nc5 {[%clk 0:01:16.1]} 23... Bf5
{[%clk 0:01:16.2]} 24. Ne6 {[%clk 0:01:06.1]} 24... Re8 {[%clk 0:01:00.7]} 25.
d5 {[%clk 0:00:58.5]} 25... Bh6 {[%clk 0:00:42]} 26. Nd4 {[%clk 0:00:23.3]}
26... Bd7 {[%clk 0:00:40.3]} 27. dxc6 {[%clk 0:00:22.5]} 27... bxc6 {[%clk
0:00:40.1]} 28. Ba3 {[%clk 0:00:20.2]} 28... e5 {[%clk 0:00:39.9]} 29. Ne2
{[%clk 0:00:20]} 29... f5 {[%clk 0:00:38.4]} 30. Ng3 {[%clk 0:00:18.7]} 30... e4
{[%clk 0:00:36.1]} 31. Bd6 {[%clk 0:00:15.7]} 31... Bf8 {[%clk 0:00:32.4]} 32.
Bxf8 {[%clk 0:00:14.7]} 32... Rxf8 {[%clk 0:00:32.4]} 33. Rd6 {[%clk 0:00:15.5]}
33... Re7 {[%clk 0:00:23.4]} 34. Rg6 {[%clk 0:00:14.7]} 34... Kc7 {[%clk
0:00:16.7]} 35. Rxg5 {[%clk 0:00:14.4]} 35... f4 {[%clk 0:00:17]} 36. Nf1 {[%clk
0:00:14.6]} 36... e3 {[%clk 0:00:14.8]} 37. fxe3 {[%clk 0:00:14.4]} 37... f3
{[%clk 0:00:15.3]} 38. gxf3 {[%clk 0:00:14.4]} 38... gxf3 {[%clk 0:00:16.2]} 39.
Kf2 {[%clk 0:00:14.7]} 39... Rh7 {[%clk 0:00:14.6]} 40. Rg3 {[%clk 0:00:14.3]}
40... Rhf7 {[%clk 0:00:13.9]} 41. Nd2 {[%clk 0:00:13.5]} 41... Kb6 {[%clk
0:00:14.3]} 42. Rxf3 {[%clk 0:00:13.4]} 42... Rxf3+ {[%clk 0:00:13]} 43. Nxf3
{[%clk 0:00:13.2]} 43... Bg4 {[%clk 0:00:13.7]} 44. Kg3 {[%clk 0:00:13]} 44...
Bxf3 {[%clk 0:00:13.7]} 45. Rf1 {[%clk 0:00:13.4]} 45... Rg8+ {[%clk 0:00:08.6]}
46. Kxf3 {[%clk 0:00:13.6]} 46... Rf8+ {[%clk 0:00:09.2]} 47. Ke2 {[%clk
0:00:13.7]} 47... Rh8 {[%clk 0:00:09.3]} 48. Rf2 {[%clk 0:00:14.1]} 48... Kc5
{[%clk 0:00:09.8]} 49. a3 {[%clk 0:00:14.2]} 49... a5 {[%clk 0:00:09.7]} 50. Kd3
{[%clk 0:00:14.5]} 50... Rd8+ {[%clk 0:00:08.4]} 51. Kc3 {[%clk 0:00:13.6]}
51... Re8 {[%clk 0:00:08.8]} 52. b4+ {[%clk 0:00:14.5]} 52... axb4+ {[%clk
0:00:09.5]} 53. axb4+ {[%clk 0:00:14.2]} 53... Kd6 {[%clk 0:00:10]} 54. Rf3
{[%clk 0:00:15.1]} 54... Re4 {[%clk 0:00:08.7]} 55. h3 {[%clk 0:00:15.2]} 55...
Rh4 {[%clk 0:00:08.8]} 56. Kd3 {[%clk 0:00:15.1]} 56... Ke5 {[%clk 0:00:08.8]}
57. Rg3 {[%clk 0:00:14.9]} 57... Kf5 {[%clk 0:00:08.4]} 58. Rf3+ {[%clk
0:00:14.7]} 58... Ke5 {[%clk 0:00:08.6]} 59. Kc3 {[%clk 0:00:13.7]} 59... Ke4
{[%clk 0:00:08.8]} 60. Rg3 {[%clk 0:00:14.1]} 60... Ke5 {[%clk 0:00:08.4]} 61.
b5 {[%clk 0:00:14.1]} 61... cxb5 {[%clk 0:00:08.4]} 62. cxb5 {[%clk 0:00:14.8]}
62... Kd6 {[%clk 0:00:08.5]} 63. Rg6+ {[%clk 0:00:12.4]} 63... Kc5 {[%clk
0:00:08.8]} 64. Rg5+ {[%clk 0:00:12.6]} 64... Kb6 {[%clk 0:00:08.6]} 65. Kd3
{[%clk 0:00:11.9]} 65... Rxh3 {[%clk 0:00:08.9]} 66. Kd4 {[%clk 0:00:12.1]}
66... Rh1 {[%clk 0:00:08.5]} 67. e4 {[%clk 0:00:12]} 67... Rd1+ {[%clk
0:00:08.6]} 68. Ke3 {[%clk 0:00:12.3]} 68... Re1+ {[%clk 0:00:08.9]} 69. Kf4
{[%clk 0:00:12.7]} 69... Rf1+ {[%clk 0:00:09.3]} 70. Kg4 {[%clk 0:00:12.7]}
70... Rg1+ {[%clk 0:00:09.3]} 71. Kf5 {[%clk 0:00:13.1]} 71... Rf1+ {[%clk
0:00:09.8]} 72. Ke6 {[%clk 0:00:12.9]} 72... Re1 {[%clk 0:00:10.3]} 73. Re5
{[%clk 0:00:13.2]} 73... Re2 {[%clk 0:00:09.4]} 74. Kf5 {[%clk 0:00:13.2]} 74...
Rf2+ {[%clk 0:00:09.6]} 75. Kg4 {[%clk 0:00:13.6]} 75... Rg2+ {[%clk 0:00:09.9]}
76. Kf3 {[%clk 0:00:13.8]} 76... Rg1 {[%clk 0:00:09.4]} 77. Rd5 {[%clk
0:00:14.7]} 77... Rf1+ {[%clk 0:00:09.3]} 78. Ke3 {[%clk 0:00:15.1]} 78... Re1+
{[%clk 0:00:09.6]} 79. Kf4 {[%clk 0:00:15.6]} 79... Rf1+ {[%clk 0:00:08.9]} 80.
Kg5 {[%clk 0:00:16]} 80... Re1 {[%clk 0:00:08.2]} 81. Kf5 {[%clk 0:00:16.9]}
81... Rf1+ {[%clk 0:00:08.4]} 82. Ke6 {[%clk 0:00:17.2]} 82... Rh1 {[%clk
0:00:08.2]} 83. e5 {[%clk 0:00:17]} 83... Rh6+ {[%clk 0:00:08.1]} 84. Kf5 {[%clk
0:00:17.3]} 84... Rh5+ {[%clk 0:00:08.6]} 85. Kg6 {[%clk 0:00:17.5]} 85... Rh1
{[%clk 0:00:08.4]} 86. e6 {[%clk 0:00:17.3]} 86... Rg1+ {[%clk 0:00:08.5]} 87.
Kf7 {[%clk 0:00:17.4]} 87... Rf1+ {[%clk 0:00:08.8]} 88. Ke8 {[%clk 0:00:17.6]}
88... Rd1 {[%clk 0:00:09.2]} 89. e7 {[%clk 0:00:17.8]} 89... Rxd5 {[%clk
0:00:09.2]} 90. Kf8 {[%clk 0:00:18]} 90... Rf5+ {[%clk 0:00:09.3]} 91. Kg7
{[%clk 0:00:17.9]} 91... Re5 {[%clk 0:00:09.7]} 92. Kf7 {[%clk 0:00:17.2]} 92...
Rxe7+ {[%clk 0:00:09.9]} 93. Kxe7 {[%clk 0:00:17]} 93... Kxb5 {[%clk 0:00:10.4]}
1/2-1/2

[Event "*** Titled Tuesday Blitz"]
[Site "Chess.com"]
[Date "2021.02.16"]
[Round "4"]
[White "TokChess"]
[Black "ajedrez1101"]
[Result "1-0"]
[WhiteElo "2387"]
[BlackElo "2107"]
[TimeControl "180+1"]
[EndTime "10:36:19 PST"]
[Termination "TokChess won by resignation"]

1. e4 {[%clk 0:03:00.9]} 1... g6 {[%clk 0:02:59.7]} 2. Nf3 {[%clk 0:03:00.7]}
2... Bg7 {[%clk 0:03:00.1]} 3. Bc4 {[%clk 0:02:59.9]} 3... d6 {[%clk 0:02:59.4]}
4. d3 {[%clk 0:02:59.8]} 4... c5 {[%clk 0:02:56.2]} 5. h4 {[%clk 0:02:58.4]}
5... Bg4 {[%clk 0:02:38.8]} 6. Bxf7+ {[%clk 0:02:56.1]} 6... Kxf7 {[%clk
0:02:35.3]} 7. Ng5+ {[%clk 0:02:56.2]} 7... Ke8 {[%clk 0:02:32]} 8. Qxg4 {[%clk
0:02:57.1]} 8... Nf6 {[%clk 0:02:32.1]} 9. Qe6 {[%clk 0:02:45.8]} 9... Rf8
{[%clk 0:02:27]} 10. Qb3 {[%clk 0:02:45.4]} 10... Qb6 {[%clk 0:02:25]} 11. Qxb6
{[%clk 0:02:38.9]} 11... axb6 {[%clk 0:02:23.1]} 12. Ne6 {[%clk 0:02:39.8]} 1-0

[Event "*** Titled Tuesday Blitz"]
[Site "Chess.com"]
[Date "2021.02.16"]
[Round "4"]
[White "IMAghasiyevKamal"]
[Black "Spriteball"]
[Result "1-0"]
[WhiteElo "2529"]
[BlackElo "2350"]
[TimeControl "180+1"]
[EndTime "10:36:56 PST"]
[Termination "IMAghasiyevKamal won by resignation"]

1. d4 {[%clk 0:03:00.9]} 1... d5 {[%clk 0:02:58.9]} 2. c4 {[%clk 0:02:57.1]}
2... c6 {[%clk 0:02:59.1]} 3. Nc3 {[%clk 0:02:55]} 3... Nf6 {[%clk 0:02:59.4]}
4. e3 {[%clk 0:02:54.8]} 4... Bf5 {[%clk 0:02:57.9]} 5. cxd5 {[%clk 0:02:53.7]}
5... cxd5 {[%clk 0:02:57.6]} 6. Qb3 {[%clk 0:02:53.4]} 6... Qd7 {[%clk 0:02:39]}
7. Nf3 {[%clk 0:02:52.3]} 7... e6 {[%clk 0:02:27.4]} 8. Ne5 {[%clk 0:02:48.2]}
8... Qc7 {[%clk 0:02:15.8]} 9. Bd2 {[%clk 0:02:42.1]} 9... Bd6 {[%clk
0:02:12.3]} 10. Nb5 {[%clk 0:02:39.9]} 10... Qb6 {[%clk 0:02:10.2]} 11. Nxd6+
{[%clk 0:02:39.8]} 11... Qxd6 {[%clk 0:02:11.1]} 12. Qxb7 {[%clk 0:02:39]} 12...
O-O {[%clk 0:01:55.4]} 13. Qxa8 {[%clk 0:02:38.9]} 13... Nbd7 {[%clk 0:01:55.1]}
14. Qc6 {[%clk 0:02:36.5]} 1-0

[Event "*** Titled Tuesday Blitz"]
[Site "Chess.com"]
[Date "2021.02.16"]
[Round "4"]
[White "juancruzarias"]
[Black "Gulkov_Igor"]
[Result "1-0"]
[WhiteElo "2646"]
[BlackElo "2472"]
[TimeControl "180+1"]
[EndTime "10:37:50 PST"]
[Termination "juancruzarias won by resignation"]

1. e4 {[%clk 0:02:56.7]} 1... c5 {[%clk 0:02:59.3]} 2. Nc3 {[%clk 0:02:56.8]}
2... d6 {[%clk 0:02:58]} 3. g3 {[%clk 0:02:56.3]} 3... Nc6 {[%clk 0:02:57.5]} 4.
Bg2 {[%clk 0:02:57]} 4... g6 {[%clk 0:02:57.8]} 5. d3 {[%clk 0:02:57.5]} 5...
Bg7 {[%clk 0:02:58.1]} 6. Be3 {[%clk 0:02:57.7]} 6... e5 {[%clk 0:02:57.9]} 7.
f4 {[%clk 0:02:53.7]} 7... Nge7 {[%clk 0:02:57.3]} 8. Nh3 {[%clk 0:02:53.2]}
8... O-O {[%clk 0:02:55.2]} 9. O-O {[%clk 0:02:51.5]} 9... Nd4 {[%clk
0:02:55.1]} 10. Qd2 {[%clk 0:02:51.1]} 10... f6 {[%clk 0:02:46.7]} 11. Nf2
{[%clk 0:02:48.6]} 11... Be6 {[%clk 0:02:45.5]} 12. g4 {[%clk 0:02:48.7]} 12...
exf4 {[%clk 0:02:43.5]} 13. Bxf4 {[%clk 0:02:48.5]} 13... Qd7 {[%clk 0:02:41.2]}
14. h3 {[%clk 0:02:47.4]} 14... d5 {[%clk 0:02:36.7]} 15. Bh6 {[%clk 0:02:47.5]}
15... Rae8 {[%clk 0:02:26.5]} 16. Bxg7 {[%clk 0:02:46.1]} 16... Kxg7 {[%clk
0:02:26.3]} 17. Rae1 {[%clk 0:02:47]} 17... b6 {[%clk 0:02:24.8]} 18. Ncd1
{[%clk 0:02:29.9]} 18... Ndc6 {[%clk 0:02:21]} 19. Ne3 {[%clk 0:02:20.8]} 19...
d4 {[%clk 0:02:16.9]} 20. Ned1 {[%clk 0:02:18.5]} 20... Ne5 {[%clk 0:02:10.7]}
21. g5 {[%clk 0:02:11.5]} 21... f5 {[%clk 0:02:08.7]} 22. exf5 {[%clk
0:02:08.4]} 1-0

[Event "*** Titled Tuesday Blitz"]
[Site "Chess.com"]
[Date "2021.02.16"]
[Round "4"]
[White "1random"]
[Black "Doudou2015"]
[Result "1-0"]
[WhiteElo "2384"]
[BlackElo "2061"]
[TimeControl "180+1"]
[EndTime "10:37:50 PST"]
[Termination "1random won by resignation"]

1. e4 {[%clk 0:02:59.8]} 1... e5 {[%clk 0:02:59]} 2. Bc4 {[%clk 0:02:58.5]} 2...
Nf6 {[%clk 0:02:57.1]} 3. d4 {[%clk 0:02:57.5]} 3... exd4 {[%clk 0:02:55.7]} 4.
Nf3 {[%clk 0:02:57.9]} 4... Nc6 {[%clk 0:02:56]} 5. O-O {[%clk 0:02:55.6]} 5...
Nxe4 {[%clk 0:02:56]} 6. Nc3 {[%clk 0:02:55.6]} 6... Nxc3 {[%clk 0:02:52.9]} 7.
bxc3 {[%clk 0:02:55.7]} 7... d5 {[%clk 0:02:51.8]} 8. Bb5 {[%clk 0:02:54.9]}
8... Be7 {[%clk 0:02:46.2]} 9. Nxd4 {[%clk 0:02:52.7]} 9... Bd7 {[%clk
0:02:46.2]} 10. Nb3 {[%clk 0:02:50.4]} 10... O-O {[%clk 0:02:44.8]} 11. Qxd5
{[%clk 0:02:49.3]} 11... a6 {[%clk 0:02:40.6]} 12. Bd3 {[%clk 0:02:48.2]} 12...
Bf6 {[%clk 0:02:32.8]} 13. Nc5 {[%clk 0:02:41.9]} 13... Bc8 {[%clk 0:02:26.5]}
14. Qe4 {[%clk 0:02:29.2]} 14... g6 {[%clk 0:02:23]} 15. Rb1 {[%clk 0:02:29.9]}
15... Re8 {[%clk 0:02:10.6]} 16. Qa4 {[%clk 0:02:30.2]} 16... b5 {[%clk
0:02:03.9]} 17. Bxb5 {[%clk 0:02:26.2]} 17... axb5 {[%clk 0:01:49.3]} 18. Qxa8
{[%clk 0:02:25.2]} 18... Bxc3 {[%clk 0:01:44.5]} 19. Qxc6 {[%clk 0:02:23.1]} 1-0

[Event "*** Titled Tuesday Blitz"]
[Site "Chess.com"]
[Date "2021.02.16"]
[Round "4"]
[White "andrewtnb"]
[Black "Superfelix"]
[Result "1-0"]
[WhiteElo "2312"]
[BlackElo "2433"]
[TimeControl "180+1"]
[EndTime "10:38:14 PST"]
[Termination "andrewtnb won by resignation"]

1. d4 {[%clk 0:03:00.9]} 1... g6 {[%clk 0:02:59.5]} 2. e4 {[%clk 0:02:59.8]}
2... c6 {[%clk 0:02:59.7]} 3. Nf3 {[%clk 0:02:56.8]} 3... d5 {[%clk 0:03:00.2]}
4. Nc3 {[%clk 0:02:55]} 4... dxe4 {[%clk 0:03:00.5]} 5. Nxe4 {[%clk 0:02:54.1]}
5... Nf6 {[%clk 0:03:01.4]} 6. Nxf6+ {[%clk 0:02:52.9]} 6... exf6 {[%clk
0:03:02.3]} 7. h3 {[%clk 0:02:52.2]} 7... Bg7 {[%clk 0:03:02.8]} 8. Bc4 {[%clk
0:02:51.7]} 8... O-O {[%clk 0:03:03.2]} 9. O-O {[%clk 0:02:51.5]} 9... a5 {[%clk
0:03:03.8]} 10. a4 {[%clk 0:02:47]} 10... Na6 {[%clk 0:03:04.3]} 11. c3 {[%clk
0:02:45.7]} 11... Nc7 {[%clk 0:03:04.9]} 12. Re1 {[%clk 0:02:41.7]} 12... Nd5
{[%clk 0:03:05.4]} 13. Qb3 {[%clk 0:02:36.3]} 13... Nb6 {[%clk 0:03:01]} 14. Bd3
{[%clk 0:02:33.4]} 14... Be6 {[%clk 0:02:57.6]} 15. Rxe6 {[%clk 0:02:26]} 15...
fxe6 {[%clk 0:02:57.2]} 16. Qxe6+ {[%clk 0:02:26.6]} 16... Rf7 {[%clk
0:02:54.2]} 17. Bf4 {[%clk 0:02:25.6]} 17... Qd7 {[%clk 0:02:52.7]} 18. Qb3
{[%clk 0:02:21]} 18... Nd5 {[%clk 0:02:51.4]} 19. Bd2 {[%clk 0:02:14.9]} 19...
Qd6 {[%clk 0:02:48.2]} 20. c4 {[%clk 0:02:10.5]} 20... Nb4 {[%clk 0:02:48.1]}
21. c5 {[%clk 0:02:09]} 21... Qd7 {[%clk 0:02:46.7]} 22. Bxb4 {[%clk 0:02:07.6]}
22... axb4 {[%clk 0:02:47.6]} 23. Bc4 {[%clk 0:02:06.8]} 23... Kf8 {[%clk
0:02:48.1]} 24. Bxf7 {[%clk 0:02:03.8]} 24... Qxf7 {[%clk 0:02:49]} 25. Qxb4
{[%clk 0:02:03.5]} 25... Bh6 {[%clk 0:02:47.6]} 26. Re1 {[%clk 0:01:57.6]} 26...
Bf4 {[%clk 0:02:46.9]} 27. g3 {[%clk 0:01:55.1]} 27... Bc7 {[%clk 0:02:46.2]}
28. Qxb7 {[%clk 0:01:51.6]} 28... Rb8 {[%clk 0:02:45.5]} 29. Qxc6 {[%clk
0:01:49.2]} 29... Rxb2 {[%clk 0:02:45.7]} 30. d5 {[%clk 0:01:46.4]} 30... Be5
{[%clk 0:02:41.4]} 31. d6 {[%clk 0:01:31.2]} 31... Qa2 {[%clk 0:02:34.1]} 32. d7
{[%clk 0:01:18.8]} 1-0

[Event "*** Titled Tuesday Blitz"]
[Site "Chess.com"]
[Date "2021.02.16"]
[Round "4"]
[White "LogoCzar"]
[Black "NTBT_DHS"]
[Result "0-1"]
[WhiteElo "2377"]
[BlackElo "2780"]
[TimeControl "180+1"]
[EndTime "10:38:19 PST"]
[Termination "NTBT_DHS won by checkmate"]

1. e4 {[%clk 0:03:00.9]} 1... g6 {[%clk 0:02:59.7]} 2. d4 {[%clk 0:03:00.4]}
2... Bg7 {[%clk 0:03:00.1]} 3. Nc3 {[%clk 0:03:00.7]} 3... d6 {[%clk 0:03:00.7]}
4. f4 {[%clk 0:03:01.1]} 4... Nf6 {[%clk 0:03:00.7]} 5. Nf3 {[%clk 0:03:01.5]}
5... O-O {[%clk 0:03:01.3]} 6. Bd3 {[%clk 0:03:01.2]} 6... Nc6 {[%clk
0:03:01.5]} 7. Be2 {[%clk 0:03:01.4]} 7... Bg4 {[%clk 0:02:56.9]} 8. d5 {[%clk
0:03:01]} 8... Nb8 {[%clk 0:02:55.9]} 9. h3 {[%clk 0:03:01.1]} 9... Bd7 {[%clk
0:02:54.5]} 10. O-O {[%clk 0:03:00.7]} 10... c6 {[%clk 0:02:54.6]} 11. dxc6
{[%clk 0:02:59.9]} 11... Nxc6 {[%clk 0:02:54.5]} 12. Be3 {[%clk 0:02:59.7]}
12... Qa5 {[%clk 0:02:52.6]} 13. Kh1 {[%clk 0:02:55]} 13... Rfd8 {[%clk
0:02:51.1]} 14. g4 {[%clk 0:02:55.3]} 14... Rac8 {[%clk 0:02:50.5]} 15. g5
{[%clk 0:02:51.6]} 15... Nh5 {[%clk 0:02:40.4]} 16. Kg2 {[%clk 0:02:50.8]} 16...
Bxc3 {[%clk 0:02:32.9]} 17. bxc3 {[%clk 0:02:50.4]} 17... Qxc3 {[%clk
0:02:33.8]} 18. Bd3 {[%clk 0:02:45.1]} 18... Nb4 {[%clk 0:01:34.7]} 19. Bd4
{[%clk 0:02:40]} 19... Nxf4+ {[%clk 0:01:26.1]} 20. Kg3 {[%clk 0:02:36.9]} 20...
Nh5+ {[%clk 0:01:23.1]} 21. Kh4 {[%clk 0:02:36]} 21... Nxd3 {[%clk 0:01:01.5]}
22. Bxc3 {[%clk 0:02:31.7]} 22... Ndf4 {[%clk 0:01:01.8]} 23. Be1 {[%clk
0:02:25.5]} 23... Ng2# {[%clk 0:01:00.8]} 0-1

[Event "*** Titled Tuesday Blitz"]
[Site "Chess.com"]
[Date "2021.02.16"]
[Round "4"]
[White "AndrewMaco"]
[Black "ChainsOfFantasia"]
[Result "1-0"]
[WhiteElo "2664"]
[BlackElo "2475"]
[TimeControl "180+1"]
[EndTime "10:38:42 PST"]
[Termination "AndrewMaco won by resignation"]

1. e4 {[%clk 0:03:00.9]} 1... e6 {[%clk 0:02:59.7]} 2. d4 {[%clk 0:02:32.2]}
2... d5 {[%clk 0:03:00.6]} 3. Nc3 {[%clk 0:02:33.1]} 3... Nf6 {[%clk 0:02:59.2]}
4. e5 {[%clk 0:02:33]} 4... Nfd7 {[%clk 0:02:59.5]} 5. f4 {[%clk 0:02:32.1]}
5... c5 {[%clk 0:03:00.4]} 6. Nf3 {[%clk 0:02:30.7]} 6... Nc6 {[%clk 0:03:01.3]}
7. Be3 {[%clk 0:02:31.2]} 7... a6 {[%clk 0:03:02.1]} 8. Qd2 {[%clk 0:02:30.5]}
8... b5 {[%clk 0:03:02.6]} 9. Bd3 {[%clk 0:02:27.9]} 9... Qb6 {[%clk 0:03:01.4]}
10. Qf2 {[%clk 0:02:25.8]} 10... cxd4 {[%clk 0:03:00]} 11. Nxd4 {[%clk
0:02:26.7]} 11... Nxd4 {[%clk 0:02:59.5]} 12. Bxd4 {[%clk 0:02:27.6]} 12... Bc5
{[%clk 0:02:59.5]} 13. Ne2 {[%clk 0:02:27.5]} 13... O-O {[%clk 0:02:58.5]} 14.
O-O {[%clk 0:02:23.1]} 14... f6 {[%clk 0:02:57.6]} 15. exf6 {[%clk 0:02:20.9]}
15... Bxd4 {[%clk 0:02:54.3]} 16. Qxd4 {[%clk 0:02:19.3]} 16... Rxf6 {[%clk
0:02:49.8]} 17. Qxb6 {[%clk 0:02:16.8]} 17... Nxb6 {[%clk 0:02:50.7]} 18. Nd4
{[%clk 0:02:17.7]} 18... Bd7 {[%clk 0:02:50]} 19. Rae1 {[%clk 0:02:17.1]} 19...
b4 {[%clk 0:02:40]} 20. g3 {[%clk 0:02:14.7]} 20... a5 {[%clk 0:02:39.9]} 21.
Re2 {[%clk 0:02:10.1]} 21... a4 {[%clk 0:02:39.5]} 22. Rfe1 {[%clk 0:02:10.2]}
22... a3 {[%clk 0:02:36]} 23. b3 {[%clk 0:02:10]} 23... Re8 {[%clk 0:02:32.5]}
24. Nf3 {[%clk 0:02:09.3]} 24... Rc8 {[%clk 0:02:25.6]} 25. Kf2 {[%clk
0:02:04.8]} 25... h6 {[%clk 0:02:24.6]} 26. h4 {[%clk 0:02:04.7]} 26... Rff8
{[%clk 0:02:19.3]} 27. Ke3 {[%clk 0:02:04.7]} 27... Rc5 {[%clk 0:02:17.5]} 28.
Kd2 {[%clk 0:02:04.8]} 28... Nc8 {[%clk 0:02:13.2]} 29. Nd4 {[%clk 0:02:04.5]}
29... Nd6 {[%clk 0:02:03.4]} 30. Nxe6 {[%clk 0:02:04.3]} 30... Bxe6 {[%clk
0:02:03.4]} 31. Rxe6 {[%clk 0:02:04.8]} 31... Rd8 {[%clk 0:01:58.6]} 32. Ke3
{[%clk 0:01:57.1]} 32... Kf7 {[%clk 0:01:48]} 33. Kd4 {[%clk 0:01:57.2]} 33...
Rc7 {[%clk 0:01:41.7]} 34. Bg6+ {[%clk 0:01:56.8]} 34... Kf8 {[%clk 0:01:40.6]}
35. Rxd6 {[%clk 0:01:56.8]} 1-0

[Event "*** Titled Tuesday Blitz"]
[Site "Chess.com"]
[Date "2021.02.16"]
[Round "4"]
[White "AniJak"]
[Black "catzapto"]
[Result "1-0"]
[WhiteElo "2322"]
[BlackElo "2103"]
[TimeControl "180+1"]
[EndTime "10:38:42 PST"]
[Termination "AniJak won by resignation"]

1. e4 {[%clk 0:03:00.9]} 1... c5 {[%clk 0:03:00.4]} 2. Nf3 {[%clk 0:03:00.5]}
2... e6 {[%clk 0:03:00.7]} 3. d4 {[%clk 0:03:00.5]} 3... cxd4 {[%clk 0:03:01.6]}
4. Nxd4 {[%clk 0:03:01]} 4... Nf6 {[%clk 0:03:02]} 5. Nc3 {[%clk 0:03:00.5]}
5... Bb4 {[%clk 0:03:01.9]} 6. Bd3 {[%clk 0:02:57.1]} 6... d5 {[%clk 0:03:01.3]}
7. e5 {[%clk 0:02:48.8]} 7... Nfd7 {[%clk 0:02:59.6]} 8. Qe2 {[%clk 0:02:33.7]}
8... a6 {[%clk 0:02:52.3]} 9. O-O {[%clk 0:02:32.9]} 9... Qc7 {[%clk 0:02:51.6]}
10. Qg4 {[%clk 0:01:59.3]} 10... Qxe5 {[%clk 0:02:19]} 11. Nf3 {[%clk
0:01:54.9]} 11... h5 {[%clk 0:02:12.5]} 12. Qxb4 {[%clk 0:01:52.6]} 12... Qc7
{[%clk 0:01:56.8]} 13. Nxd5 {[%clk 0:01:51.7]} 13... exd5 {[%clk 0:01:54.7]} 14.
Re1+ {[%clk 0:01:51.4]} 14... Ne5 {[%clk 0:01:48.7]} 15. Nxe5 {[%clk 0:01:41.4]}
15... Be6 {[%clk 0:01:48.3]} 16. Bf4 {[%clk 0:01:35.4]} 16... g5 {[%clk
0:01:33.1]} 17. Ng6 {[%clk 0:01:26.3]} 1-0

[Event "*** Titled Tuesday Blitz"]
[Site "Chess.com"]
[Date "2021.02.16"]
[Round "4"]
[White "ram1zan"]
[Black "KonstantinB_1983"]
[Result "1-0"]
[WhiteElo "2866"]
[BlackElo "2549"]
[TimeControl "180+1"]
[EndTime "10:38:49 PST"]
[Termination "ram1zan won by resignation"]

1. e4 {[%clk 0:03:00.9]} 1... c6 {[%clk 0:02:58.5]} 2. d4 {[%clk 0:03:00]} 2...
d5 {[%clk 0:02:58.8]} 3. exd5 {[%clk 0:03:00.9]} 3... cxd5 {[%clk 0:02:58.2]} 4.
Bd3 {[%clk 0:03:01.5]} 4... Nc6 {[%clk 0:02:56.6]} 5. c3 {[%clk 0:03:01.1]} 5...
Nf6 {[%clk 0:02:56.9]} 6. Bf4 {[%clk 0:03:01.1]} 6... Bg4 {[%clk 0:02:56.2]} 7.
Qb3 {[%clk 0:03:01.3]} 7... Qc8 {[%clk 0:02:55.5]} 8. Nd2 {[%clk 0:03:01.3]}
8... e6 {[%clk 0:02:54]} 9. Ngf3 {[%clk 0:03:01.8]} 9... Be7 {[%clk 0:02:53.7]}
10. O-O {[%clk 0:03:00.4]} 10... O-O {[%clk 0:02:54.1]} 11. Qc2 {[%clk
0:03:00.3]} 11... Bh5 {[%clk 0:02:52.4]} 12. Ne5 {[%clk 0:03:00.4]} 12... Nxe5
{[%clk 0:02:51.1]} 13. dxe5 {[%clk 0:03:00.3]} 13... Nd7 {[%clk 0:02:44.6]} 14.
Bxh7+ {[%clk 0:03:00.2]} 14... Kh8 {[%clk 0:02:45.2]} 15. Bd3 {[%clk 0:03:01.1]}
15... Nc5 {[%clk 0:02:44.2]} 16. Rfe1 {[%clk 0:02:58.1]} 16... Nxd3 {[%clk
0:02:43.3]} 17. Qxd3 {[%clk 0:02:59]} 17... Bg6 {[%clk 0:02:43.4]} 18. Qg3
{[%clk 0:02:54.8]} 18... Qc5 {[%clk 0:02:38.3]} 19. Nf3 {[%clk 0:02:54.7]} 19...
Qb6 {[%clk 0:02:37.3]} 20. Re2 {[%clk 0:02:50.6]} 20... Rac8 {[%clk 0:02:35]}
21. h4 {[%clk 0:02:36.6]} 21... Rc4 {[%clk 0:02:32.4]} 22. Be3 {[%clk
0:02:36.7]} 22... Qa6 {[%clk 0:02:28.3]} 23. Rd2 {[%clk 0:02:35.9]} 23... b5
{[%clk 0:02:22.3]} 24. Rd4 {[%clk 0:02:28.6]} 24... Rfc8 {[%clk 0:02:17.3]} 25.
h5 {[%clk 0:02:28.3]} 25... Be4 {[%clk 0:02:14.3]} 26. h6 {[%clk 0:02:27.6]}
26... g6 {[%clk 0:02:03.8]} 27. Ng5 {[%clk 0:02:26.2]} 27... Rf8 {[%clk
0:01:50.3]} 28. Nxe4 {[%clk 0:02:22.2]} 28... dxe4 {[%clk 0:01:48.6]} 29. Rd7
{[%clk 0:02:22.2]} 29... Bd8 {[%clk 0:01:42.1]} 30. Rad1 {[%clk 0:02:21.6]}
30... Rc8 {[%clk 0:01:39.7]} 31. Qf4 {[%clk 0:02:12.1]} 31... f5 {[%clk
0:01:33.3]} 32. exf6 {[%clk 0:02:09.4]} 32... Bxf6 {[%clk 0:01:32.4]} 33. Qxe4
{[%clk 0:02:08.8]} 1-0